bitfinex/quotes_SOLUSD_20250809
["timestamp","ask_amount","ask_price","bid_price","bid_amount"]
[1754746480643,41.10621557,180.66,180.65,1e-08]
[1754746480847,41.80621557,180.66,180.65,1e-08]
[1754746481068,51.25283596,180.66,180.65,1e-08]
[1754746481652,47.34147517,180.66,180.65,1e-08]
[1754746481973,56.78809556,180.66,180.65,1e-08]
[1754746482585,34.44926976,180.66,180.65,1e-08]
[1754746482757,26.0,180.63,180.56,9.44662039]
[1754746482955,26.0,180.63,180.53,5.53915361]
[1754746482956,50.24662039,180.62,180.57,9.44662039]
[1754746483168,0.7,180.61,180.57,9.44662039]
[1754746483469,40.8,180.6,180.57,9.44662039]
[1754746483675,40.8,180.6,180.55,0.65]
[1754746483676,41.5,180.6,180.55,0.65]
[1754746483851,40.8,180.6,180.57,9.44662039]
[1754746484049,46.33713602,180.6,180.57,9.44662039]
[1754746484254,46.33713602,180.6,180.56,0.65]
[1754746484455,40.8,180.6,180.58,9.44662039]
[1754746484675,46.3372222,180.6,180.56,0.65]
[1754746484985,46.3372222,180.6,180.57,9.44662039]
[1754746484986,47.0372222,180.6,180.57,9.44662039]
[1754746485294,47.0372222,180.6,180.56,9.44662039]
[1754746485576,47.0372222,180.6,180.54,0.65]
[1754746485784,10.14662039,180.59,180.5,0.65]
[1754746485961,46.3372222,180.6,180.56,9.44662039]
[1754746485962,40.8,180.58,180.56,9.44662039]
[1754746486477,0.7,180.57,180.55,9.44662039]
[1754746486650,40.8,180.56,180.55,9.44662039]
[1754746487165,40.8,180.56,180.53,0.65]
[1754746487363,40.8,180.56,180.55,9.44662039]
[1754746488454,0.7,180.61,180.55,10.09662039]
[1754746488655,6.23689373,180.61,180.58,9.44662039]
[1754746488859,6.23689373,180.61,180.55,6.18850774]
[1754746488860,0.7,180.64,180.6,9.44662039]
[1754746489189,40.76,180.63,180.55,5.53850774]
[1754746489365,40.76,180.62,180.61,9.44662039]
[1754746490256,46.99655263,180.62,180.55,0.65]
[1754746490573,46.99655263,180.62,180.59,9.44662039]
[1754746490752,0.7,180.61,180.59,9.44662039]
[1754746491179,0.7,180.61,180.55,26.65]
[1754746491180,0.7,180.6,180.58,9.44662039]
[1754746491677,40.72,180.59,180.58,9.44662039]
[1754746491979,40.72,180.59,180.58,10.09662039]
[1754746492163,40.72,180.59,180.56,5.53824004]
[1754746492479,40.72,180.59,180.58,9.44662039]
[1754746492778,41.44,180.59,180.54,31.53889139]
[1754746492969,41.44,180.59,180.58,9.44662039]
[1754746494384,40.74,180.59,180.58,9.44662039]
[1754746494982,40.74,180.59,180.54,26.71]
[1754746495173,46.9774763,180.59,180.54,0.06]
[1754746495479,46.9774763,180.59,180.57,9.44662039]
[1754746495480,40.74,180.59,180.57,9.44662039]
[1754746495653,40.74,180.59,180.58,9.44662039]
[1754746495858,46.97741135,180.59,180.58,9.44662039]
[1754746496281,41.44,180.59,180.58,9.44662039]
[1754746496482,41.4,180.59,180.58,9.44662039]
[1754746497666,46.9376424,180.59,180.54,0.06]
[1754746497862,0.7,180.58,180.54,0.06]
[1754746498064,0.7,180.57,180.54,9.50662039]
[1754746498266,40.66,180.56,180.55,9.44662039]
[1754746498893,41.36,180.56,180.55,9.44662039]
[1754746500197,0.72,180.59,180.55,9.44662039]
[1754746500487,41.34,180.58,180.54,0.06]
[1754746500980,0.72,180.57,180.54,0.06]
[1754746501502,26.72,180.57,180.54,0.06]
[1754746501666,0.72,180.57,180.56,9.44662039]
[1754746501866,40.66,180.57,180.56,9.44662039]
[1754746502094,41.38,180.57,180.55,9.44662039]
[1754746502387,6.25832521,180.56,180.54,9.50662039]
[1754746502760,6.25832521,180.56,180.54,5.85982359]
[1754746503189,46.19810225,180.57,180.55,5.79982359]
[1754746503374,40.66,180.57,180.54,0.06]
[1754746503574,40.66,180.57,180.54,0.71]
[1754746503772,40.66,180.57,180.56,5.79982359]
[1754746504268,40.66,180.57,180.54,0.06]
[1754746504689,40.66,180.57,180.56,5.79982359]
[1754746505805,0.72,180.66,180.56,6.44982359]
[1754746505970,40.6,180.64,180.57,26.65]
[1754746506167,40.6,180.64,180.62,5.79982359]
[1754746506371,41.32,180.64,180.58,5.53771181]
[1754746506605,46.85602473,180.64,180.63,5.79982359]
[1754746506775,41.32,180.64,180.58,5.53771181]
[1754746506976,41.32,180.64,180.63,5.79982359]
[1754746507394,46.85587245,180.64,180.63,5.79982359]
[1754746507592,46.85587245,180.64,180.58,5.53771181]
[1754746507796,46.85587245,180.64,180.63,5.79982359]
[1754746508002,0.03,180.65,180.63,5.79982359]
[1754746508196,40.58,180.64,180.6,0.65]
[1754746508403,40.58,180.64,180.63,5.79982359]
[1754746509120,40.58,180.64,180.63,12.24964718]
[1754746509268,0.03,180.65,180.63,12.24964718]
[1754746509473,0.03,180.65,180.64,6.44982359]
[1754746509895,0.03,180.65,180.64,5.79982359]
[1754746510285,0.03,180.65,180.64,11.33569604]
[1754746510482,0.03,180.65,180.64,11.98569604]
[1754746515822,0.03,180.67,180.64,6.18587245]
[1754746516026,0.03,180.67,180.66,5.79982359]
[1754746519907,0.03,180.67,180.66,11.98508319]
[1754746520118,0.03,180.67,180.66,11.33508319]
[1754746521207,0.03,180.67,180.66,5.79982359]
[1754746522418,0.03,180.67,180.66,11.33508319]
[1754746523409,0.03,180.67,180.66,11.98508319]
[1754746524225,0.03,180.69,180.68,26.0]
[1754746524413,0.03,180.69,180.68,31.79982359]
[1754746524616,0.03,180.69,180.68,32.44982359]
[1754746524933,0.03,180.69,180.68,31.79982359]
[1754746526227,0.03,180.69,180.68,37.33447047]
[1754746527119,0.03,180.69,180.68,37.98447047]
[1754746527754,0.03,180.71,180.68,43.78429406]
[1754746527912,0.03,180.71,180.7,5.79982359]
[1754746528339,0.03,180.71,180.7,11.9838579]
[1754746529213,0.03,180.73,180.7,17.78368149]
[1754746529413,0.03,180.73,180.72,11.59964718]
[1754746530836,0.69,180.73,180.72,5.79982359]
[1754746531031,0.69,180.73,180.71,5.79982359]
[1754746531220,0.69,180.73,180.67,26.0]
[1754746531435,0.69,180.73,180.7,5.79982359]
[1754746531746,0.69,180.73,180.71,5.79982359]
[1754746532545,5.53342186,180.72,180.7,5.79982359]
[1754746532742,0.66,180.71,180.7,5.79982359]
[1754746534351,5.53403431,180.7,180.69,5.79982359]
[1754746534544,0.66,180.7,180.69,5.79982359]
[1754746534935,40.24,180.72,180.69,5.79982359]
[1754746535249,0.03,180.73,180.71,11.59964718]
[1754746535431,0.03,180.73,180.72,11.59964718]
[1754746535633,0.03,180.73,180.68,26.0]
[1754746535934,0.03,180.73,180.72,5.79982359]
[1754746536342,0.69,180.73,180.72,5.79982359]
[1754746537228,0.03,180.73,180.72,5.79982359]
[1754746537632,0.03,180.73,180.69,5.53422907]
[1754746537834,0.03,180.73,180.72,5.79982359]
[1754746538544,0.69,180.73,180.72,5.79982359]
[1754746539131,0.69,180.73,180.71,5.79982359]
[1754746539341,0.69,180.73,180.7,5.79982359]
[1754746539824,5.53342186,180.72,180.7,5.79982359]
[1754746540022,0.66,180.71,180.7,5.79982359]
[1754746540951,0.66,180.71,180.69,5.79982359]
[1754746541255,0.66,180.7,180.69,5.79982359]
[1754746541437,0.66,180.7,180.67,0.06]
[1754746541636,0.66,180.7,180.68,5.79982359]
[1754746541842,45.73342186,180.72,180.69,5.79982359]
[1754746542167,0.66,180.71,180.7,5.79982359]
[1754746542458,0.66,180.71,180.69,5.79982359]
[1754746543062,0.66,180.71,180.68,5.79982359]
[1754746543236,0.66,180.71,180.67,5.85982359]
[1754746543632,0.66,180.71,180.68,5.79982359]
[1754746543951,6.19403431,180.7,180.68,5.79982359]
[1754746544128,0.66,180.69,180.68,5.79982359]
[1754746546467,5.53405801,180.7,180.68,5.79982359]
[1754746546664,6.19405801,180.7,180.67,0.06]
[1754746546969,6.19405801,180.7,180.68,5.79982359]
[1754746547173,46.39364076,180.72,180.69,5.79982359]
[1754746547366,0.66,180.71,180.7,5.79982359]
[1754746549156,6.19380043,180.71,180.67,0.06]
[1754746549372,0.66,180.7,180.69,5.79982359]
[1754746551649,6.19403431,180.7,180.69,5.79982359]
[1754746552273,6.19403431,180.7,180.67,0.06]
[1754746552484,5.53403431,180.7,180.69,5.79982359]
[1754746552680,9.21350583,180.71,180.68,5.79982359]
[1754746553053,0.66,180.7,180.67,0.06]
[1754746553283,10.14083097,180.7,180.67,0.06]
[1754746553481,0.66,180.69,180.67,0.06]
[1754746553680,40.02,180.68,180.67,0.06]
[1754746553868,40.68,180.68,180.67,0.06]
[1754746554895,40.02,180.68,180.67,5.85982359]
[1754746556362,39.96,180.68,180.67,5.85982359]
[1754746556972,5.5337398,180.71,180.67,5.85982359]
[1754746557195,39.96,180.69,180.67,0.06]
[1754746557379,39.96,180.69,180.68,5.79982359]
[1754746557697,40.62,180.69,180.68,5.79982359]
[1754746559270,40.62,180.69,180.67,0.06]
[1754746559604,39.96,180.69,180.68,5.79982359]
[1754746559986,39.96,180.69,180.68,6.44982359]
[1754746560171,39.92,180.7,180.68,6.44982359]
[1754746560370,39.92,180.7,180.69,5.29982359]
[1754746560683,39.92,180.7,180.69,5.94982359]
[1754746560873,39.92,180.7,180.69,5.29982359]
[1754746561474,39.92,180.7,180.69,10.83416417]
[1754746561769,0.03,180.73,180.69,11.48416417]
[1754746561969,0.03,180.73,180.72,5.79982359]
[1754746564498,0.03,180.73,180.72,11.98324545]
[1754746564681,0.03,180.73,180.72,17.78306904]
[1754746565591,0.03,180.75,180.72,17.28306904]
[1754746565789,0.03,180.75,180.74,31.79982359]
[1754746565972,0.03,180.76,180.74,31.79982359]
[1754746566179,0.03,180.77,180.75,47.55603916]
[1754746566393,0.03,180.78,180.76,26.43823654]
[1754746566583,0.03,180.78,180.77,5.79982359]
[1754746566791,0.03,180.78,180.77,6.44982359]
[1754746566981,0.03,180.78,180.77,5.79982359]
[1754746567897,0.7,180.78,180.76,5.79982359]
[1754746568079,39.92,180.77,180.75,5.79982359]
[1754746568285,39.92,180.77,180.71,26.65]
[1754746568506,0.67,180.76,180.75,5.79982359]
[1754746568896,0.67,180.76,180.71,26.0]
[1754746569087,45.45197781,180.77,180.75,5.79982359]
[1754746569291,45.45197781,180.77,180.71,31.53364571]
[1754746569781,0.67,180.76,180.7,26.0]
[1754746569991,0.67,180.76,180.72,5.79982359]
[1754746570398,0.67,180.76,180.68,0.65]
[1754746570605,5.53250345,180.75,180.73,5.79982359]
[1754746570803,0.67,180.74,180.68,6.18457075]
[1754746571098,39.9,180.73,180.68,6.18457075]
[1754746571310,39.9,180.73,180.72,5.79982359]
[1754746571482,40.57,180.73,180.72,5.79982359]
[1754746571885,40.57,180.73,180.68,6.18457075]
[1754746572093,40.57,180.73,180.72,5.79982359]
[1754746573100,40.57,180.73,180.68,6.18457075]
[1754746573301,40.57,180.73,180.72,5.79982359]
[1754746573678,39.9,180.73,180.72,5.79982359]
[1754746574089,39.9,180.73,180.72,11.59964718]
[1754746574289,39.9,180.73,180.72,6.44982359]
[1754746574488,39.9,180.73,180.71,5.53344958]
[1754746574693,39.9,180.73,180.72,5.79982359]
[1754746577216,39.86,180.75,180.72,5.79982359]
[1754746577513,40.53,180.75,180.74,5.79982359]
[1754746577889,40.53,180.75,180.73,5.79982359]
[1754746578115,0.67,180.74,180.73,5.79982359]
[1754746581996,39.86,180.75,180.73,5.79982359]
[1754746582190,39.86,180.75,180.74,5.79982359]
[1754746582706,39.86,180.75,180.7,31.5339635]
[1754746582896,45.39250345,180.75,180.72,5.79982359]
[1754746583594,0.67,180.74,180.72,5.79982359]
[1754746583814,45.39250345,180.75,180.72,5.79982359]
[1754746584018,0.67,180.73,180.72,5.79982359]
[1754746584694,0.67,180.73,180.69,0.06]
[1754746584897,39.78,180.72,180.69,0.06]
[1754746585597,0.67,180.71,180.69,0.06]
[1754746586306,0.67,180.71,180.7,5.79982359]
[1754746586707,39.78,180.72,180.7,5.79982359]
[1754746586921,39.78,180.72,180.71,5.79982359]
[1754746587425,39.78,180.72,180.71,6.44982359]
[1754746588721,39.78,180.72,180.71,11.98355166]
[1754746590323,39.74,180.75,180.71,11.98355166]
[1754746590513,39.74,180.75,180.74,5.79982359]
[1754746591028,40.43,180.75,180.74,5.79982359]
[1754746592131,39.74,180.75,180.74,5.79982359]
[1754746593031,0.69,180.77,180.74,5.79982359]
[1754746593252,0.69,180.77,180.73,5.53301276]
[1754746593253,39.72,180.76,180.73,5.53301276]
[1754746594132,40.41,180.76,180.72,11.33316794]
[1754746594456,0.69,180.75,180.72,26.0]
[1754746594624,39.72,180.76,180.74,5.79982359]
[1754746594828,45.51982359,180.76,180.69,0.06]
[1754746595034,5.53250345,180.75,180.69,0.06]
[1754746595238,6.22250345,180.75,180.69,0.06]
[1754746595556,0.69,180.74,180.69,0.06]
[1754746595860,39.68,180.73,180.69,0.06]
[1754746596037,0.69,180.72,180.7,5.79982359]
[1754746596522,39.68,180.73,180.7,5.79982359]
[1754746596729,39.68,180.73,180.72,5.79982359]
[1754746597356,40.37,180.73,180.72,5.79982359]
[1754746597850,40.37,180.73,180.69,0.06]
[1754746598038,0.69,180.72,180.7,5.79982359]
[1754746598234,0.69,180.71,180.69,0.06]
[1754746598438,39.68,180.7,180.69,0.06]
[1754746599547,39.68,180.7,180.69,5.85982359]
[1754746600354,40.37,180.7,180.69,5.85982359]
[1754746600566,40.37,180.7,180.69,0.06]
[1754746600867,45.90403431,180.7,180.69,0.06]
[1754746601165,45.90403431,180.7,180.67,0.06]
[1754746601357,6.48982359,180.69,180.67,0.06]
[1754746601566,5.79982359,180.68,180.67,0.06]
[1754746601861,0.69,180.68,180.67,0.06]
[1754746602043,6.22464688,180.68,180.67,0.06]
[1754746602244,12.02447047,180.68,180.67,0.06]
[1754746602479,30.80611811,180.68,180.67,0.06]
[1754746602650,30.80611811,180.68,180.67,1e-08]
[1754746603068,25.00629452,180.68,180.67,1e-08]
[1754746603251,40.35,180.68,180.67,1e-08]
[1754746603451,45.88464688,180.68,180.67,1e-08]
[1754746603647,40.35,180.68,180.67,1e-08]
[1754746604061,0.69,180.68,180.67,5.7998236]
[1754746604255,0.69,180.71,180.67,5.7998236]
[1754746604564,0.69,180.71,180.7,5.79982359]
[1754746604743,39.66,180.71,180.7,5.79982359]
[1754746606950,40.35,180.71,180.7,5.79982359]
[1754746607150,39.66,180.71,180.7,5.79982359]
[1754746608178,40.35,180.71,180.7,5.79982359]
[1754746608556,39.66,180.71,180.7,5.79982359]
[1754746609283,40.35,180.71,180.7,5.79982359]
[1754746610373,45.88372807,180.71,180.69,5.79982359]
[1754746610576,0.69,180.7,180.69,5.79982359]
[1754746610770,0.69,180.7,180.67,1e-08]
[1754746610988,6.22421015,180.7,180.67,5.7998236]
[1754746611149,0.69,180.69,180.67,5.7998236]
[1754746611351,5.53421015,180.7,180.67,5.7998236]
[1754746611352,40.31,180.68,180.67,1e-08]
[1754746611571,40.31,180.68,180.67,5.7998236]
[1754746611990,40.31,180.68,180.67,1e-08]
[1754746612159,40.31,180.68,180.67,5.7998236]
[1754746612582,40.31,180.68,180.67,1e-08]
[1754746612791,0.69,180.73,180.67,6.4898236]
[1754746613080,6.25273869,180.75,180.72,5.79982359]
[1754746613278,40.29,180.74,180.73,5.79982359]
[1754746613458,39.6,180.74,180.73,5.79982359]
[1754746613981,40.29,180.74,180.72,5.79982359]
[1754746614162,0.69,180.73,180.72,5.79982359]
[1754746614369,39.6,180.74,180.72,5.79982359]
[1754746614572,39.6,180.74,180.73,5.79982359]
[1754746614767,40.29,180.74,180.73,5.79982359]
[1754746615068,45.82280956,180.74,180.73,5.79982359]
[1754746615267,45.82280956,180.74,180.72,5.79982359]
[1754746615469,0.69,180.73,180.72,5.79982359]
[1754746616077,39.6,180.74,180.68,6.2243736]
[1754746616279,45.13291541,180.74,180.73,5.79982359]
[1754746616863,39.6,180.74,180.73,5.79982359]
[1754746617960,40.29,180.74,180.73,5.79982359]
[1754746618288,45.82284298,180.74,180.73,5.79982359]
[1754746618500,40.29,180.74,180.68,5.53456322]
[1754746618794,0.69,180.74,180.73,5.79982359]
[1754746619088,39.58,180.73,180.68,5.53456322]
[1754746619275,39.58,180.73,180.68,6.19456322]
[1754746619799,0.69,180.72,180.67,1e-08]
[1754746620169,0.69,180.72,180.69,5.79982359]
[1754746620368,0.69,180.71,180.7,5.79982359]
[1754746620984,45.80325162,180.73,180.7,5.79982359]
[1754746621208,5.53325162,180.73,180.72,5.79982359]
[1754746621506,45.09325162,180.73,180.72,5.79982359]
[1754746621717,0.69,180.73,180.72,5.79982359]
[1754746621893,39.56,180.73,180.72,5.79982359]
[1754746622506,39.56,180.73,180.72,12.25964718]
[1754746622702,0.03,180.75,180.72,12.25964718]
[1754746623014,0.03,180.75,180.74,5.79982359]
[1754746623209,0.03,180.75,180.74,11.33263315]
[1754746623506,0.03,180.75,180.74,5.79982359]
[1754746624710,0.72,180.75,180.67,87.70000001]
[1754746624909,0.72,180.75,180.72,5.79982359]
[1754746625113,0.03,180.75,180.73,5.79982359]
[1754746625413,0.03,180.75,180.74,5.79982359]
[1754746625715,0.03,180.75,180.7,0.66]
[1754746625896,0.72,180.75,180.74,5.79982359]
[1754746626786,6.25250345,180.75,180.69,5.53408555]
[1754746626991,5.79982359,180.72,180.67,1e-08]
[1754746627295,15.79621557,180.74,180.68,5.79982359]
[1754746627296,39.54,180.71,180.68,5.79982359]
[1754746627613,0.69,180.7,180.68,5.79982359]
[1754746627812,0.69,180.7,180.67,1e-08]
[1754746627993,0.69,180.73,180.69,5.79982359]
[1754746628193,39.54,180.72,180.71,5.79982359]
[1754746628510,39.54,180.72,180.67,6.1949332]
[1754746628511,40.23,180.72,180.67,1e-08]
[1754746628691,0.69,180.71,180.68,5.79982359]
[1754746628890,0.69,180.71,180.69,5.79982359]
[1754746629114,39.54,180.72,180.67,1e-08]
[1754746629299,0.69,180.73,180.71,5.79982359]
[1754746629620,40.27,180.72,180.71,5.79982359]
[1754746629786,40.27,180.72,180.7,5.79982359]
[1754746630288,40.27,180.72,180.67,0.66000001]
[1754746630496,40.27,180.72,180.69,5.79982359]
[1754746630796,39.58,180.72,180.71,5.79982359]
[1754746631015,39.56,180.72,180.71,5.79982359]
[1754746631306,39.58,180.72,180.71,5.79982359]
[1754746631481,39.58,180.72,180.68,5.53455891]
[1754746631686,39.58,180.72,180.71,5.79982359]
[1754746632803,39.58,180.72,180.68,31.53455891]
[1754746633106,39.58,180.72,180.68,32.19455891]
[1754746634108,40.27,180.72,180.71,5.79982359]
[1754746634501,39.58,180.72,180.71,5.79982359]
[1754746634823,0.03,180.75,180.71,12.25964718]
[1754746635015,0.03,180.75,180.68,31.53455891]
[1754746635016,39.61,180.75,180.74,5.79982359]
[1754746635715,40.3,180.75,180.72,5.79982359]
[1754746635923,0.69,180.74,180.72,5.79982359]
[1754746636323,0.69,180.73,180.72,5.79982359]
[1754746637329,0.69,180.73,180.7,5.53400917]
[1754746637530,0.69,180.73,180.72,5.79982359]
[1754746637710,39.56,180.73,180.72,5.79982359]
[1754746638037,39.59,180.75,180.72,5.79982359]
[1754746638204,39.59,180.75,180.74,5.79982359]
[1754746640911,39.59,180.75,180.74,11.33263315]
[1754746641735,0.03,180.75,180.74,11.33263315]
[1754746642053,0.03,180.75,180.74,11.99263315]
[1754746642617,0.03,180.77,180.74,11.99263315]
[1754746642838,0.03,180.78,180.76,31.79982359]
[1754746643012,0.03,180.78,180.77,31.79982359]
[1754746643320,0.03,180.78,180.77,37.33171494]
[1754746643722,0.72,180.78,180.77,5.79982359]
[1754746643919,0.72,180.78,180.74,5.5327299]
[1754746644117,0.03,180.78,180.77,5.79982359]
[1754746644427,0.72,180.78,180.74,5.5327299]
[1754746644837,0.69,180.77,180.73,5.53303745]
[1754746645012,0.69,180.77,180.76,5.79982359]
[1754746645208,0.03,180.78,180.74,5.53263737]
[1754746645450,0.03,180.78,180.77,5.79982359]
[1754746645644,0.03,180.75,180.74,5.53263737]
[1754746646249,0.03,180.75,180.74,6.19263737]
[1754746646539,34.61,180.79,180.74,6.19263737]
[1754746646834,34.61,180.79,180.77,5.79982359]
[1754746647544,0.69,180.78,180.75,5.79982359]
[1754746648041,0.69,180.77,180.76,5.79982359]
[1754746648740,0.69,180.77,180.75,5.79982359]
[1754746648935,5.53158535,180.78,180.75,5.79982359]
[1754746649149,0.72,180.76,180.75,5.79982359]
[1754746650349,34.61,180.79,180.75,5.79982359]
[1754746650542,35.33,180.79,180.73,0.69]
[1754746650845,35.33,180.79,180.72,5.79982359]
[1754746650846,0.72,180.78,180.76,5.79982359]
[1754746651018,0.72,180.77,180.76,5.79982359]
[1754746651454,0.72,180.77,180.72,5.79982359]
[1754746651652,0.72,180.77,180.76,5.79982359]
[1754746653531,35.86128703,180.79,180.76,5.79982359]
[1754746653725,30.33,180.79,180.78,5.79982359]
[1754746654150,35.86127938,180.79,180.78,5.79982359]
[1754746654338,35.86127938,180.79,180.77,5.79982359]
[1754746654847,35.86127938,180.79,180.78,5.79982359]
[1754746655837,36.58127938,180.79,180.75,5.79982359]
[1754746656033,0.72,180.78,180.75,5.79982359]
[1754746656437,0.72,180.77,180.71,0.69]
[1754746656639,0.72,180.77,180.73,5.79982359]
[1754746656842,0.72,180.77,180.69,6.22430243]
[1754746657030,0.72,180.77,180.72,5.79982359]
[1754746657230,0.72,180.77,180.73,5.79982359]
[1754746657647,5.53219738,180.76,180.73,5.79982359]
[1754746657853,40.24,180.75,180.7,0.69]
[1754746658149,0.72,180.74,180.73,5.79982359]
[1754746658458,0.72,180.74,180.72,5.79982359]
[1754746658750,39.52,180.75,180.72,5.79982359]
[1754746658751,0.72,180.73,180.72,5.79982359]
[1754746659141,45.05262405,180.75,180.72,5.79982359]
[1754746659344,0.72,180.74,180.72,5.79982359]
[1754746660361,0.72,180.74,180.73,5.79982359]
[1754746660546,39.52,180.75,180.73,5.79982359]
[1754746660733,45.77259958,180.75,180.73,5.79982359]
[1754746661461,45.05259958,180.75,180.73,5.79982359]
[1754746661644,0.72,180.74,180.73,5.79982359]
[1754746662350,6.25280956,180.74,180.73,5.79982359]
[1754746662656,6.25280956,180.74,180.72,5.79982359]
[1754746662860,45.05255122,180.75,180.73,6.48982359]
[1754746663063,45.05255122,180.75,180.74,5.79982359]
[1754746663258,39.52,180.75,180.74,5.79982359]
[1754746664155,45.05257056,180.75,180.74,5.79982359]
[1754746664454,45.05257056,180.75,180.71,0.69]
[1754746664455,45.77257056,180.75,180.73,5.79982359]
[1754746664841,39.52,180.75,180.74,5.79982359]
[1754746665044,45.77250345,180.75,180.74,5.79982359]
[1754746665261,45.77250345,180.75,180.69,5.53420635]
[1754746665262,45.77250345,180.75,180.73,5.79982359]
[1754746665772,39.52,180.75,180.74,5.79982359]
[1754746666372,39.52,180.75,180.74,6.48982359]
[1754746667675,39.52,180.75,180.74,6.54982359]
[1754746667962,39.52,180.78,180.74,12.08263315]
[1754746668164,39.52,180.78,180.77,5.79982359]
[1754746668850,0.03,180.79,180.77,6.48982359]
[1754746669054,0.03,180.79,180.78,6.48982359]
[1754746670281,0.03,180.79,180.78,12.02140894]
[1754746670482,0.03,180.8,180.78,58.9274481]
[1754746670665,0.03,180.8,180.79,12.28964718]
[1754746671391,0.03,180.81,180.79,12.28964718]
[1754746671567,0.03,180.83,180.82,5.79982359]
[1754746672079,0.03,180.83,180.82,6.48982359]
[1754746672561,0.03,180.83,180.82,12.02018527]
[1754746674385,0.03,180.84,180.82,12.02018527]
[1754746674692,0.03,180.84,180.83,6.48982359]
[1754746675072,0.03,180.84,180.83,5.79982359]
[1754746675267,0.03,180.84,180.83,6.48982359]
[1754746675985,0.03,180.84,180.83,5.79982359]
[1754746676281,0.03,180.84,180.82,5.53036168]
[1754746676481,0.03,180.84,180.83,31.79982359]
[1754746676983,0.03,180.84,180.83,32.48982359]
[1754746680491,0.03,180.84,180.83,38.01987944]
[1754746682801,0.1,180.9,180.83,53.12609501]
[1754746682972,0.78,180.9,180.89,5.79982359]
[1754746683168,0.1,180.9,180.89,5.79982359]
[1754746683407,0.1,180.9,180.89,6.51982359]
[1754746683909,0.1,180.9,180.89,5.79982359]
[1754746684384,0.78,180.9,180.89,5.79982359]
[1754746684707,0.78,180.9,180.86,26.0]
[1754746684880,0.78,180.9,180.89,5.79982359]
[1754746685301,6.30791597,180.9,180.89,5.79982359]
[1754746685609,6.30791597,180.9,180.84,132.7496886]
[1754746685610,6.30791597,180.9,180.88,5.79982359]
[1754746685783,0.68,180.89,180.88,5.79982359]
[1754746685988,0.68,180.89,180.86,5.79982359]
[1754746686193,0.68,180.89,180.87,5.79982359]
[1754746686692,0.68,180.89,180.81,32.51982359]
[1754746686888,6.47982359,180.89,180.84,5.79982359]
[1754746687083,6.47982359,180.88,180.83,5.79982359]
[1754746687286,6.47982359,180.87,180.83,5.79982359]
[1754746687486,39.52,180.86,180.83,5.79982359]
[1754746687694,6.20944429,180.85,180.83,5.79982359]
[1754746688003,0.68,180.84,180.82,5.79982359]
[1754746688210,0.68,180.84,180.83,5.79982359]
[1754746689182,0.68,180.84,180.83,5.85982359]
[1754746689393,5.52944429,180.85,180.83,5.85982359]
[1754746689597,40.2,180.86,180.84,5.79982359]
[1754746689793,45.72913856,180.86,180.85,5.79982359]
[1754746690403,45.72913856,180.86,180.84,5.79982359]
[1754746690575,0.68,180.85,180.84,5.79982359]
[1754746690782,0.68,180.85,180.83,0.06]
[1754746690983,0.68,180.85,180.83,5.85982359]
[1754746691611,6.20955617,180.85,180.83,5.85982359]
[1754746691816,6.20955617,180.85,180.84,5.79982359]
[1754746692105,39.52,180.86,180.84,5.79982359]
[1754746692310,39.52,180.86,180.85,5.79982359]
[1754746692792,45.72913942,180.86,180.85,5.79982359]
[1754746693187,45.72913942,180.86,180.84,5.79982359]
[1754746693387,39.52,180.86,180.84,5.79982359]
[1754746693588,39.52,180.86,180.85,5.79982359]
[1754746694607,45.72913856,180.86,180.85,5.79982359]
[1754746694987,39.52,180.86,180.85,5.79982359]